[Event "Titled Tuesday Blitz February 28 Late 2023"]
[White "Sanchez Alvares, Kelvin Antonio"]
[Black "Tsyhanchuk, Stanislav"]
[WhiteFideId "3906680"]
[BlackFideId "13505130"]
[WhiteElo "2217"]
[BlackElo "2173"]
[Result "1-0"]
[Round "05"]
[TimeControl "180+2"]
[Date "2023.02.28"]
[WhiteClock "0:01:05"]
[BlackClock "0:00:08"]

1. e4 {[%clk 0:03:00]}  c5 {[%clk 0:02:59]} 2. Nf3 {[%clk 0:03:00]}  d6 {[%clk 0:03:00]} 3. d4 {[%clk 0:02:55]}  cxd4 {[%clk 0:02:59]} 4. Nxd4 {[%clk 0:02:56]}  Nf6 {[%clk 0:03:00]} 5. f3 {[%clk 0:02:55]}  a6 {[%clk 0:02:58]} 6. c4 {[%clk 0:02:55]}  e5 {[%clk 0:02:58]} 7. Nb3 {[%clk 0:02:53]}  Nc6 {[%clk 0:02:55]} 8. Be3 {[%clk 0:02:53]}  Be6 {[%clk 0:02:55]} 9. Nc3 {[%clk 0:02:53]}  g5 {[%clk 0:02:50]} 10. Bxg5 {[%clk 0:02:50]}  Rg8 {[%clk 0:02:50]} 11. Qd2 {[%clk 0:02:48]}  h6 {[%clk 0:02:39]} 12. Be3 {[%clk 0:02:46]}  Nh5 {[%clk 0:02:21]} 13. O-O-O {[%clk 0:02:42]}  Qc7 {[%clk 0:02:17]} 14. Kb1 {[%clk 0:02:41]}  Ne7 {[%clk 0:02:06]} 15. Nd5 {[%clk 0:02:38]}  Bxd5 {[%clk 0:01:56]} 16. cxd5 {[%clk 0:02:37]}  Rg6 {[%clk 0:01:52]} 17. g3 {[%clk 0:02:33]}  Nf6 {[%clk 0:01:47]} 18. Bd3 {[%clk 0:02:28]}  h5 {[%clk 0:01:46]} 19. Rhg1 {[%clk 0:02:27]}  a5 {[%clk 0:01:42]} 20. Rc1 {[%clk 0:02:22]}  Qd7 {[%clk 0:01:37]} 21. Qe2 {[%clk 0:02:19]}  Qh3 {[%clk 0:01:06]} 22. Bb5+ {[%clk 0:02:16]}  Nd7 {[%clk 0:01:05]} 23. Rc7 {[%clk 0:02:15]}  Rd8 {[%clk 0:01:01]} 24. Nxa5 {[%clk 0:02:08]}  Ng8 {[%clk 0:00:41]} 25. Nxb7 {[%clk 0:02:00]}  Nf6 {[%clk 0:00:41]} 26. Nxd8 {[%clk 0:01:55]}  Kxd8 {[%clk 0:00:41]} 27. Rgc1 {[%clk 0:01:54]}  Bh6 {[%clk 0:00:35]} 28. Bxh6 {[%clk 0:01:53]}  Rxh6 {[%clk 0:00:36]} 29. Qd2 {[%clk 0:01:52]}  Rg6 {[%clk 0:00:34]} 30. Qa5 {[%clk 0:01:50]}  Ke7 {[%clk 0:00:33]} 31. Bxd7 {[%clk 0:01:45]}  Nxd7 {[%clk 0:00:28]} 32. Qa7 {[%clk 0:01:41]}  Kd8 {[%clk 0:00:21]} 33. Rc8+ {[%clk 0:01:33]}  Ke7 {[%clk 0:00:21]} 34. R1c7 {[%clk 0:01:33]}  Qf1+ {[%clk 0:00:19]} 35. Rc1 {[%clk 0:01:31]}  Qd3+ {[%clk 0:00:18]} 36. Ka1 {[%clk 0:01:30]}  Rf6 {[%clk 0:00:13]} 37. R8c7 {[%clk 0:01:29]}  Qb5 {[%clk 0:00:12]} 38. Rxd7+ {[%clk 0:01:27]}  Kf8 {[%clk 0:00:13]} 39. Qa8+ {[%clk 0:01:18]}  Kg7 {[%clk 0:00:13]} 40. Qc6 {[%clk 0:01:18]}  Qe2 {[%clk 0:00:10]} 41. Rxd6 {[%clk 0:01:11]}  Rxf3 {[%clk 0:00:10]} 42. Rd7 {[%clk 0:01:11]}  Rf2 {[%clk 0:00:10]} 43. Rb7 {[%clk 0:01:10]}  Qd2 {[%clk 0:00:09]} 44. a3 {[%clk 0:01:06]}  Rxh2 {[%clk 0:00:08]} 45. Qc3 {[%clk 0:01:06]}  Qe2 {[%clk 0:00:08]} 46. Qxe5+ {[%clk 0:01:06]}  Kg6 {[%clk 0:00:08]} 47. Qf5+ {[%clk 0:01:05]}  Kh6 {[%clk 0:00:07]} 48. Qf6+ {[%clk 0:01:06]}  Kh7 {[%clk 0:00:07]} 49. Rxf7+ {[%clk 0:01:05]}  Kg8 {[%clk 0:00:08]} 50. Qg7# {[%clk 0:01:05]} 1-0


[Site "https://www.chess.com"]

[Event "Titled Tuesday Blitz February 28 Late 2023"]
[White "Fernandez Garcia, Gumersindo"]
[Black "Petukhov, Dmitry"]
[WhiteFideId "24516740"]
[BlackFideId "4142748"]
[WhiteElo "2093"]
[BlackElo "2311"]
[Result "0-1"]
[Round "05"]
[TimeControl "180+2"]
[Date "2023.02.28"]
[WhiteClock "0:00:19"]
[BlackClock "0:01:17"]

1. e4 {[%clk 0:03:00]}  c5 {[%clk 0:02:59]} 2. c3 {[%clk 0:02:59]}  d5 {[%clk 0:02:59]} 3. exd5 {[%clk 0:02:59]}  Qxd5 {[%clk 0:03:00]} 4. Nf3 {[%clk 0:02:59]}  Nf6 {[%clk 0:02:59]} 5. Be2 {[%clk 0:02:58]}  Bg4 {[%clk 0:02:58]} 6. h3 {[%clk 0:02:58]}  Bh5 {[%clk 0:02:58]} 7. O-O {[%clk 0:02:57]}  e6 {[%clk 0:02:59]} 8. d4 {[%clk 0:02:58]}  Nc6 {[%clk 0:02:58]} 9. Be3 {[%clk 0:02:42]}  cxd4 {[%clk 0:02:57]} 10. cxd4 {[%clk 0:02:43]}  Be7 {[%clk 0:02:55]} 11. Nc3 {[%clk 0:02:42]}  Qd6 {[%clk 0:02:55]} 12. Qb3 {[%clk 0:02:29]}  O-O {[%clk 0:02:50]} 13. Rfd1 {[%clk 0:02:28]}  Rfd8 {[%clk 0:02:48]} 14. Rac1 {[%clk 0:02:21]}  a6 {[%clk 0:02:48]} 15. a3 {[%clk 0:02:13]}  b5 {[%clk 0:02:45]} 16. Ne5 {[%clk 0:01:40]}  Bxe2 {[%clk 0:02:43]} 17. Nxc6 {[%clk 0:01:40]}  Bxd1 {[%clk 0:02:36]} 18. Nxe7+ {[%clk 0:01:38]}  Qxe7 {[%clk 0:02:37]} 19. Rxd1 {[%clk 0:01:34]}  Nd5 {[%clk 0:02:37]} 20. Ne4 {[%clk 0:01:32]}  Nxe3 {[%clk 0:02:36]} 21. fxe3 {[%clk 0:01:32]}  Rac8 {[%clk 0:02:36]} 22. Nc5 {[%clk 0:01:29]}  Rc6 {[%clk 0:02:15]} 23. Rf1 {[%clk 0:01:27]}  h6 {[%clk 0:02:14]} 24. Qc2 {[%clk 0:01:20]}  Qg5 {[%clk 0:01:58]} 25. Rf3 {[%clk 0:01:15]}  e5 {[%clk 0:01:52]} 26. Qe4 {[%clk 0:00:58]}  Rg6 {[%clk 0:01:52]} 27. Rf2 {[%clk 0:00:49]}  exd4 {[%clk 0:01:47]} 28. exd4 {[%clk 0:00:50]}  Qd5 {[%clk 0:01:46]} 29. Qh4 {[%clk 0:00:47]}  Qxd4 {[%clk 0:01:43]} 30. Qe7 {[%clk 0:00:42]}  Rf6 {[%clk 0:01:30]} 31. Ne4 {[%clk 0:00:30]}  Qd1+ {[%clk 0:01:27]} 32. Kh2 {[%clk 0:00:23]}  Rxf2 {[%clk 0:01:21]} 33. Nxf2 {[%clk 0:00:24]}  Qd6+ {[%clk 0:01:22]} 34. Qxd6 {[%clk 0:00:23]}  Rxd6 {[%clk 0:01:23]} 35. Ne4 {[%clk 0:00:23]}  Rc6 {[%clk 0:01:19]} 36. Kg3 {[%clk 0:00:17]}  Rc2 {[%clk 0:01:19]} 37. b4 {[%clk 0:00:18]}  Ra2 {[%clk 0:01:19]} 38. Nc5 {[%clk 0:00:18]}  Rxa3+ {[%clk 0:01:18]} 39. Kf2 {[%clk 0:00:19]}  a5 {[%clk 0:01:16]} 40. bxa5 {[%clk 0:00:19]}  Rxa5 {[%clk 0:01:17]} 0-1


[Site "https://www.chess.com"]

[Event "Titled Tuesday Blitz February 28 Late 2023"]
[White "Erzhanov, Arman"]
[Black "Albornoz Cabrera, Carlos Daniel"]
[WhiteFideId "4138821"]
[BlackFideId "3518736"]
[WhiteElo "2138"]
[BlackElo "2501"]
[Result "1-0"]
[Round "05"]
[TimeControl "180+2"]
[Date "2023.02.28"]
[WhiteClock "0:00:12"]
[BlackClock "0:01:27"]

1. e4 {[%clk 0:02:56]}  c6 {[%clk 0:03:00]} 2. d4 {[%clk 0:02:55]}  d5 {[%clk 0:03:00]} 3. exd5 {[%clk 0:02:56]}  cxd5 {[%clk 0:03:00]} 4. c4 {[%clk 0:02:57]}  Nf6 {[%clk 0:03:00]} 5. Nc3 {[%clk 0:02:57]}  g6 {[%clk 0:03:00]} 6. cxd5 {[%clk 0:02:57]}  Bg7 {[%clk 0:03:00]} 7. Bc4 {[%clk 0:02:56]}  O-O {[%clk 0:03:00]} 8. Nge2 {[%clk 0:02:56]}  Nbd7 {[%clk 0:03:00]} 9. Bb3 {[%clk 0:02:53]}  Nb6 {[%clk 0:03:00]} 10. Nf4 {[%clk 0:02:54]}  h6 {[%clk 0:02:41]} 11. h4 {[%clk 0:02:44]}  Bf5 {[%clk 0:02:40]} 12. Be3 {[%clk 0:02:43]}  Rc8 {[%clk 0:02:35]} 13. f3 {[%clk 0:02:40]}  Nc4 {[%clk 0:02:28]} 14. Bxc4 {[%clk 0:02:36]}  Rxc4 {[%clk 0:02:29]} 15. g4 {[%clk 0:02:35]}  Bd7 {[%clk 0:02:29]} 16. g5 {[%clk 0:02:34]}  Nh7 {[%clk 0:02:28]} 17. gxh6 {[%clk 0:02:21]}  Bf6 {[%clk 0:02:28]} 18. h5 {[%clk 0:02:07]}  g5 {[%clk 0:02:28]} 19. Ng6 {[%clk 0:02:02]}  fxg6 {[%clk 0:02:23]} 20. hxg6 {[%clk 0:02:02]}  Bf5 {[%clk 0:02:22]} 21. gxh7+ {[%clk 0:01:59]}  Kxh7 {[%clk 0:02:23]} 22. Qd2 {[%clk 0:01:54]}  b5 {[%clk 0:02:13]} 23. a3 {[%clk 0:01:49]}  a5 {[%clk 0:02:13]} 24. Bxg5 {[%clk 0:01:08]}  b4 {[%clk 0:02:12]} 25. axb4 {[%clk 0:01:08]}  axb4 {[%clk 0:02:13]} 26. Bxf6 {[%clk 0:01:07]}  exf6 {[%clk 0:02:08]} 27. Ra7+ {[%clk 0:01:01]}  Kh8 {[%clk 0:02:08]} 28. Qg2 {[%clk 0:00:47]}  Qe8+ {[%clk 0:02:08]} 29. Kf2 {[%clk 0:00:38]}  Qg6 {[%clk 0:01:53]} 30. Qxg6 {[%clk 0:00:34]}  Bxg6 {[%clk 0:01:54]} 31. Ne4 {[%clk 0:00:32]}  Rxd4 {[%clk 0:01:50]} 32. Rd7 {[%clk 0:00:20]}  Bxe4 {[%clk 0:01:44]} 33. fxe4 {[%clk 0:00:21]}  Rxe4 {[%clk 0:01:45]} 34. Rg1 {[%clk 0:00:21]}  Rf4+ {[%clk 0:01:37]} 35. Ke3 {[%clk 0:00:19]}  Rh4 {[%clk 0:01:37]} 36. Rg6 {[%clk 0:00:17]}  Re8+ {[%clk 0:01:34]} 37. Kd3 {[%clk 0:00:18]}  Ree4 {[%clk 0:01:32]} 38. Rxf6 {[%clk 0:00:13]}  Rd4+ {[%clk 0:01:32]} 39. Kc2 {[%clk 0:00:13]}  Rh2+ {[%clk 0:01:29]} 40. Kb3 {[%clk 0:00:13]}  Rh3+ {[%clk 0:01:29]} 41. Ka4 {[%clk 0:00:13]}  b3+ {[%clk 0:01:29]} 42. Kb5 {[%clk 0:00:13]}  Kg8 {[%clk 0:01:28]} 43. Rg6+ {[%clk 0:00:12]}  Kf8 {[%clk 0:01:28]} 44. h7 {[%clk 0:00:13]}  Rdh4 {[%clk 0:01:27]} 45. Rg8# {[%clk 0:00:12]} 1-0


[Site "https://www.chess.com"]

[Event "Titled Tuesday Blitz February 28 Late 2023"]
[White "Di Berardino, Diego Rafael"]
[Black "Todev, Simeon"]
[WhiteFideId "2105446"]
[BlackFideId "2925133"]
[WhiteElo "2432"]
[BlackElo "1938"]
[Result "1-0"]
[Round "05"]
[TimeControl "180+2"]
[Date "2023.02.28"]
[WhiteClock "0:00:18"]
[BlackClock "0:00:15"]

1. e4 {[%clk 0:03:00]}  e5 {[%clk 0:02:58]} 2. Nf3 {[%clk 0:02:57]}  Nf6 {[%clk 0:02:58]} 3. Bc4 {[%clk 0:02:58]}  d5 {[%clk 0:02:58]} 4. exd5 {[%clk 0:02:48]}  Bc5 {[%clk 0:02:56]} 5. Nxe5 {[%clk 0:02:33]}  O-O {[%clk 0:02:53]} 6. d4 {[%clk 0:02:28]}  Bb6 {[%clk 0:02:36]} 7. Nc3 {[%clk 0:02:12]}  Re8 {[%clk 0:02:34]} 8. O-O {[%clk 0:02:11]}  Nbd7 {[%clk 0:02:30]} 9. Bf4 {[%clk 0:02:04]}  Nxe5 {[%clk 0:02:26]} 10. dxe5 {[%clk 0:02:00]}  Ng4 {[%clk 0:02:20]} 11. Qe2 {[%clk 0:01:17]}  Bf5 {[%clk 0:02:12]} 12. e6 {[%clk 0:01:08]}  fxe6 {[%clk 0:02:02]} 13. dxe6 {[%clk 0:01:09]}  Qd4 {[%clk 0:02:00]} 14. Bg3 {[%clk 0:01:02]}  Nf6 {[%clk 0:01:57]} 15. Rad1 {[%clk 0:01:00]}  Qc5 {[%clk 0:01:54]} 16. a3 {[%clk 0:00:49]}  Qe7 {[%clk 0:01:47]} 17. Rfe1 {[%clk 0:00:43]}  Rad8 {[%clk 0:01:46]} 18. Rd7 {[%clk 0:00:41]}  Bg4 {[%clk 0:00:41]} 19. Rxe7 {[%clk 0:00:30]}  Rxe7 {[%clk 0:00:30]} 20. Qe5 {[%clk 0:00:26]}  Rd2 {[%clk 0:00:27]} 21. h3 {[%clk 0:00:24]}  Bh5 {[%clk 0:00:23]} 22. Nd5 {[%clk 0:00:18]}  Nxd5 {[%clk 0:00:19]} 23. Bxd5 {[%clk 0:00:19]}  Rxc2 {[%clk 0:00:15]} 24. Qxh5 {[%clk 0:00:18]} 1-0


[Site "https://www.chess.com"]

[Event "Titled Tuesday Blitz February 28 Late 2023"]
[White "Rodrigues, Tiago Pereira"]
[Black "Paspuel, Trosky"]
[WhiteFideId "2101203"]
[BlackFideId "3602150"]
[WhiteElo "2168"]
[BlackElo "2310"]
[Result "1-0"]
[Round "05"]
[TimeControl "180+2"]
[Date "2023.02.28"]
[WhiteClock "0:02:37"]
[BlackClock "0:01:36"]

1. d4 {[%clk 0:03:00]}  Nf6 {[%clk 0:02:59]} 2. Bf4 {[%clk 0:03:00]}  c5 {[%clk 0:02:59]} 3. c3 {[%clk 0:03:00]}  Qb6 {[%clk 0:02:59]} 4. Qc2 {[%clk 0:02:59]}  g6 {[%clk 0:02:55]} 5. Nd2 {[%clk 0:02:59]}  d6 {[%clk 0:02:51]} 6. e3 {[%clk 0:02:58]}  Bg7 {[%clk 0:02:50]} 7. h3 {[%clk 0:02:55]}  O-O {[%clk 0:02:50]} 8. Ngf3 {[%clk 0:02:55]}  a6 {[%clk 0:02:50]} 9. a4 {[%clk 0:02:55]}  Qc7 {[%clk 0:02:47]} 10. a5 {[%clk 0:02:51]}  cxd4 {[%clk 0:02:38]} 11. exd4 {[%clk 0:02:51]}  Nc6 {[%clk 0:02:39]} 12. Qa4 {[%clk 0:02:51]}  Bd7 {[%clk 0:02:38]} 13. Qa3 {[%clk 0:02:47]}  Rab8 {[%clk 0:02:23]} 14. Bc4 {[%clk 0:02:41]}  e5 {[%clk 0:02:15]} 15. dxe5 {[%clk 0:02:41]}  dxe5 {[%clk 0:02:16]} 16. Bh2 {[%clk 0:02:41]}  Rfe8 {[%clk 0:01:58]} 17. O-O {[%clk 0:02:41]}  Bf8 {[%clk 0:01:59]} 18. Qa2 {[%clk 0:02:38]}  Rbd8 {[%clk 0:01:36]} 19. Bxf7+ {[%clk 0:02:37]} 1-0


[Site "https://www.chess.com"]

[Event "Titled Tuesday Blitz February 28 Late 2023"]
[White "Romero Ruscalleda, Josep"]
[Black "Bilan, Danila"]
[WhiteFideId "2231859"]
[BlackFideId "24161918"]
[WhiteElo "2183"]
[BlackElo "2182"]
[Result "1-0"]
[Round "05"]
[TimeControl "180+2"]
[Date "2023.02.28"]
[WhiteClock "0:00:02"]
[BlackClock "0:00:02"]

1. e4 {[%clk 0:03:00]}  c6 {[%clk 0:02:57]} 2. Nc3 {[%clk 0:03:00]}  d5 {[%clk 0:02:58]} 3. Nf3 {[%clk 0:03:00]}  Bg4 {[%clk 0:02:57]} 4. h3 {[%clk 0:03:00]}  Bxf3 {[%clk 0:02:57]} 5. Qxf3 {[%clk 0:03:01]}  e6 {[%clk 0:02:56]} 6. d4 {[%clk 0:02:57]}  dxe4 {[%clk 0:02:54]} 7. Qxe4 {[%clk 0:02:57]}  Nf6 {[%clk 0:02:52]} 8. Qd3 {[%clk 0:02:57]}  Bd6 {[%clk 0:02:48]} 9. g3 {[%clk 0:02:57]}  Nbd7 {[%clk 0:02:45]} 10. Bg2 {[%clk 0:02:57]}  Qc7 {[%clk 0:02:43]} 11. O-O {[%clk 0:02:56]}  O-O {[%clk 0:02:42]} 12. a4 {[%clk 0:02:55]}  Rac8 {[%clk 0:02:32]} 13. Bg5 {[%clk 0:02:46]}  h6 {[%clk 0:02:31]} 14. Bd2 {[%clk 0:02:46]}  Rfd8 {[%clk 0:02:25]} 15. Qe2 {[%clk 0:02:40]}  a6 {[%clk 0:02:12]} 16. Ne4 {[%clk 0:02:35]}  Nxe4 {[%clk 0:02:06]} 17. Bxe4 {[%clk 0:02:32]}  Nf6 {[%clk 0:01:57]} 18. Bd3 {[%clk 0:02:30]}  c5 {[%clk 0:01:51]} 19. dxc5 {[%clk 0:02:24]}  Bxc5 {[%clk 0:01:50]} 20. Bf4 {[%clk 0:02:24]}  Bd6 {[%clk 0:01:49]} 21. Bxd6 {[%clk 0:02:12]}  Rxd6 {[%clk 0:01:47]} 22. Kg2 {[%clk 0:02:07]}  a5 {[%clk 0:01:41]} 23. Qf3 {[%clk 0:02:03]}  b6 {[%clk 0:01:38]} 24. Rfe1 {[%clk 0:02:02]}  Rcd8 {[%clk 0:01:31]} 25. Rad1 {[%clk 0:01:51]}  Rd4 {[%clk 0:01:20]} 26. b3 {[%clk 0:01:46]}  Qd6 {[%clk 0:01:08]} 27. Re2 {[%clk 0:01:38]}  Kf8 {[%clk 0:01:01]} 28. Rde1 {[%clk 0:01:28]}  Ke7 {[%clk 0:00:55]} 29. Re5 {[%clk 0:01:14]}  Rd5 {[%clk 0:00:49]} 30. Rxd5 {[%clk 0:01:06]}  Qxd5 {[%clk 0:00:48]} 31. Qxd5 {[%clk 0:01:05]}  Nxd5 {[%clk 0:00:49]} 32. Re5 {[%clk 0:00:58]}  f6 {[%clk 0:00:37]} 33. Re2 {[%clk 0:00:57]}  Nb4 {[%clk 0:00:36]} 34. Bc4 {[%clk 0:00:58]}  Rd6 {[%clk 0:00:27]} 35. Kf3 {[%clk 0:00:49]}  Nc6 {[%clk 0:00:21]} 36. c3 {[%clk 0:00:47]}  Ne5+ {[%clk 0:00:20]} 37. Ke4 {[%clk 0:00:43]}  Nd7 {[%clk 0:00:15]} 38. f4 {[%clk 0:00:40]}  Nc5+ {[%clk 0:00:14]} 39. Kf3 {[%clk 0:00:40]}  Kd7 {[%clk 0:00:12]} 40. h4 {[%clk 0:00:37]}  Ke7 {[%clk 0:00:09]} 41. Kg4 {[%clk 0:00:34]}  Kf7 {[%clk 0:00:09]} 42. f5 {[%clk 0:00:31]}  Ke7 {[%clk 0:00:08]} 43. Kh5 {[%clk 0:00:29]}  e5 {[%clk 0:00:05]} 44. Kg6 {[%clk 0:00:29]}  Kf8 {[%clk 0:00:05]} 45. b4 {[%clk 0:00:24]}  Nxa4 {[%clk 0:00:04]} 46. bxa5 {[%clk 0:00:22]}  bxa5 {[%clk 0:00:04]} 47. Ra2 {[%clk 0:00:21]}  Nb6 {[%clk 0:00:04]} 48. Be6 {[%clk 0:00:20]}  a4 {[%clk 0:00:04]} 49. c4 {[%clk 0:00:20]}  Rc6 {[%clk 0:00:04]} 50. Rd2 {[%clk 0:00:18]}  Ke7 {[%clk 0:00:02]} 51. Rc2 {[%clk 0:00:15]}  Rc7 {[%clk 0:00:02]} 52. c5 {[%clk 0:00:14]}  Nd7 {[%clk 0:00:02]} 53. c6 {[%clk 0:00:14]}  Nf8+ {[%clk 0:00:02]} 54. Kxg7 {[%clk 0:00:12]}  Nxe6+ {[%clk 0:00:03]} 55. fxe6 {[%clk 0:00:13]}  Kxe6+ {[%clk 0:00:04]} 56. Kxh6 {[%clk 0:00:13]}  Kd6 {[%clk 0:00:03]} 57. Kg6 {[%clk 0:00:12]}  Rxc6 {[%clk 0:00:03]} 58. Rd2+ {[%clk 0:00:11]}  Ke6 {[%clk 0:00:03]} 59. h5 {[%clk 0:00:11]}  Rc3 {[%clk 0:00:02]} 60. Rg2 {[%clk 0:00:09]}  Rc1 {[%clk 0:00:02]} 61. h6 {[%clk 0:00:08]}  Rh1 {[%clk 0:00:03]} 62. h7 {[%clk 0:00:08]}  e4 {[%clk 0:00:02]} 63. Kg7 {[%clk 0:00:07]}  f5 {[%clk 0:00:03]} 64. Ra2 {[%clk 0:00:04]}  Ke5 {[%clk 0:00:02]} 65. Rxa4 {[%clk 0:00:03]}  e3 {[%clk 0:00:02]} 66. h8=Q {[%clk 0:00:02]} 1-0


[Site "https://www.chess.com"]

[Event "Titled Tuesday Blitz February 28 Late 2023"]
[White "Kalajzic, Ivan"]
[Black "Awoki, Daniel Teidi"]
[WhiteFideId "14506378"]
[BlackFideId "2100827"]
[WhiteElo "2203"]
[BlackElo "2083"]
[Result "1-0"]
[Round "05"]
[TimeControl "180+2"]
[Date "2023.02.28"]
[WhiteClock "0:00:06"]
[BlackClock "0:00:21"]

1. b3 {[%clk 0:02:42]}  e5 {[%clk 0:02:59]} 2. Bb2 {[%clk 0:02:42]}  d6 {[%clk 0:02:59]} 3. e3 {[%clk 0:02:42]}  Nf6 {[%clk 0:03:00]} 4. d4 {[%clk 0:02:41]}  exd4 {[%clk 0:03:00]} 5. Qxd4 {[%clk 0:02:41]}  Nc6 {[%clk 0:02:58]} 6. Bb5 {[%clk 0:02:41]}  Bd7 {[%clk 0:02:58]} 7. Bxc6 {[%clk 0:02:42]}  Bxc6 {[%clk 0:02:58]} 8. Nf3 {[%clk 0:02:41]}  Be7 {[%clk 0:02:57]} 9. c4 {[%clk 0:02:41]}  O-O {[%clk 0:02:56]} 10. Nc3 {[%clk 0:02:40]}  Ne8 {[%clk 0:02:52]} 11. Nd5 {[%clk 0:02:39]}  Bxd5 {[%clk 0:02:51]} 12. cxd5 {[%clk 0:02:38]}  Bf6 {[%clk 0:02:51]} 13. Qd2 {[%clk 0:02:38]}  Bxb2 {[%clk 0:02:51]} 14. Qxb2 {[%clk 0:02:38]}  Nf6 {[%clk 0:02:49]} 15. Qd4 {[%clk 0:02:36]}  Qe7 {[%clk 0:02:46]} 16. O-O {[%clk 0:02:34]}  a5 {[%clk 0:02:34]} 17. Rac1 {[%clk 0:02:32]}  Qd7 {[%clk 0:02:18]} 18. Rc2 {[%clk 0:02:19]}  a4 {[%clk 0:02:17]} 19. b4 {[%clk 0:02:19]}  Rfe8 {[%clk 0:02:16]} 20. a3 {[%clk 0:02:05]}  Rac8 {[%clk 0:02:06]} 21. Rfc1 {[%clk 0:02:04]}  c6 {[%clk 0:02:06]} 22. dxc6 {[%clk 0:02:01]}  Rxc6 {[%clk 0:02:06]} 23. h3 {[%clk 0:01:50]}  Rec8 {[%clk 0:01:53]} 24. Rxc6 {[%clk 0:01:24]}  Rxc6 {[%clk 0:01:54]} 25. Rd1 {[%clk 0:01:21]}  Qc7 {[%clk 0:01:49]} 26. b5 {[%clk 0:00:54]}  Rc1 {[%clk 0:01:49]} 27. Qxa4 {[%clk 0:00:51]}  Rxd1+ {[%clk 0:01:34]} 28. Qxd1 {[%clk 0:00:52]}  Qc5 {[%clk 0:01:35]} 29. a4 {[%clk 0:00:44]}  h6 {[%clk 0:01:32]} 30. Qd4 {[%clk 0:00:42]}  Qxd4 {[%clk 0:01:22]} 31. Nxd4 {[%clk 0:00:41]}  Nd5 {[%clk 0:01:23]} 32. a5 {[%clk 0:00:40]}  Kf8 {[%clk 0:01:21]} 33. a6 {[%clk 0:00:38]}  bxa6 {[%clk 0:01:21]} 34. bxa6 {[%clk 0:00:39]}  Nb6 {[%clk 0:01:21]} 35. Nb5 {[%clk 0:00:36]}  Ke7 {[%clk 0:01:20]} 36. Kf1 {[%clk 0:00:26]}  Kd7 {[%clk 0:01:20]} 37. Ke2 {[%clk 0:00:25]}  Kc6 {[%clk 0:01:20]} 38. Nd4+ {[%clk 0:00:25]}  Kd7 {[%clk 0:01:08]} 39. Nf5 {[%clk 0:00:25]}  g6 {[%clk 0:01:08]} 40. Nxh6 {[%clk 0:00:24]}  Ke6 {[%clk 0:01:05]} 41. Ng4 {[%clk 0:00:23]}  Kd5 {[%clk 0:01:04]} 42. f3 {[%clk 0:00:20]}  Kc6 {[%clk 0:01:04]} 43. Nh6 {[%clk 0:00:20]}  f6 {[%clk 0:01:04]} 44. Ng8 {[%clk 0:00:20]}  Nd7 {[%clk 0:01:03]} 45. a7 {[%clk 0:00:18]}  Kb7 {[%clk 0:01:02]} 46. Ne7 {[%clk 0:00:18]}  g5 {[%clk 0:01:03]} 47. Nc8 {[%clk 0:00:16]}  Ne5 {[%clk 0:00:54]} 48. Nxd6+ {[%clk 0:00:16]}  Kxa7 {[%clk 0:00:54]} 49. Ne4 {[%clk 0:00:16]}  Nd7 {[%clk 0:00:53]} 50. Kd3 {[%clk 0:00:16]}  Kb7 {[%clk 0:00:54]} 51. Kd4 {[%clk 0:00:16]}  Kc6 {[%clk 0:00:54]} 52. g3 {[%clk 0:00:16]}  Ne5 {[%clk 0:00:50]} 53. Nd2 {[%clk 0:00:15]}  Kd6 {[%clk 0:00:50]} 54. Ke4 {[%clk 0:00:15]}  Ke6 {[%clk 0:00:50]} 55. g4 {[%clk 0:00:16]}  Nd7 {[%clk 0:00:47]} 56. Nb3 {[%clk 0:00:14]}  Ne5 {[%clk 0:00:35]} 57. f4 {[%clk 0:00:13]}  gxf4 {[%clk 0:00:34]} 58. exf4 {[%clk 0:00:14]}  Nc4 {[%clk 0:00:30]} 59. Nd4+ {[%clk 0:00:14]}  Kf7 {[%clk 0:00:30]} 60. h4 {[%clk 0:00:13]}  Nd6+ {[%clk 0:00:29]} 61. Kf3 {[%clk 0:00:11]}  Kg6 {[%clk 0:00:27]} 62. h5+ {[%clk 0:00:11]}  Kh6 {[%clk 0:00:25]} 63. Ke3 {[%clk 0:00:07]}  Kg7 {[%clk 0:00:24]} 64. Kd3 {[%clk 0:00:06]}  Kh6 {[%clk 0:00:22]} 65. Ke3 {[%clk 0:00:07]}  Kh7 {[%clk 0:00:21]} 66. Nf5 {[%clk 0:00:04]}  Nxf5+ {[%clk 0:00:20]} 67. gxf5 {[%clk 0:00:05]}  Kh6 {[%clk 0:00:20]} 68. Ke4 {[%clk 0:00:05]}  Kxh5 {[%clk 0:00:21]} 69. Kd5 {[%clk 0:00:06]} 1-0


[Site "https://www.chess.com"]

[Event "Titled Tuesday Blitz February 28 Late 2023"]
[White "Leonte, Sebastian-Marian"]
[Black "Sokolin, Leonid"]
[WhiteFideId "1268767"]
[BlackFideId "2009161"]
[WhiteElo "2261"]
[BlackElo "2394"]
[Result "0-1"]
[Round "05"]
[TimeControl "180+2"]
[Date "2023.02.28"]
[WhiteClock "0:00:09"]
[BlackClock "0:00:27"]

1. e4 {[%clk 0:03:00]}  c5 {[%clk 0:02:59]} 2. Nf3 {[%clk 0:03:00]}  Nc6 {[%clk 0:02:58]} 3. d4 {[%clk 0:02:59]}  cxd4 {[%clk 0:02:58]} 4. Nxd4 {[%clk 0:03:00]}  e5 {[%clk 0:02:59]} 5. Nb5 {[%clk 0:03:00]}  d6 {[%clk 0:02:59]} 6. N1c3 {[%clk 0:02:59]}  a6 {[%clk 0:02:59]} 7. Na3 {[%clk 0:03:00]}  Be6 {[%clk 0:02:58]} 8. Nc4 {[%clk 0:02:58]}  Rb8 {[%clk 0:02:58]} 9. a4 {[%clk 0:02:44]}  Nb4 {[%clk 0:02:46]} 10. a5 {[%clk 0:02:34]}  Nf6 {[%clk 0:02:43]} 11. Bg5 {[%clk 0:02:31]}  Qc7 {[%clk 0:02:39]} 12. Bxf6 {[%clk 0:02:28]}  Bxc4 {[%clk 0:02:32]} 13. Bxc4 {[%clk 0:02:18]}  Qxc4 {[%clk 0:02:32]} 14. Bg5 {[%clk 0:02:16]}  Rc8 {[%clk 0:02:07]} 15. Qd2 {[%clk 0:02:05]}  h6 {[%clk 0:01:58]} 16. Be3 {[%clk 0:02:03]}  Be7 {[%clk 0:01:56]} 17. f3 {[%clk 0:01:29]}  O-O {[%clk 0:01:46]} 18. Kf2 {[%clk 0:01:28]}  Rfd8 {[%clk 0:01:42]} 19. Rhd1 {[%clk 0:01:22]}  f5 {[%clk 0:01:31]} 20. Kg1 {[%clk 0:01:13]}  fxe4 {[%clk 0:01:17]} 21. fxe4 {[%clk 0:01:13]}  Kh7 {[%clk 0:01:17]} 22. Ra4 {[%clk 0:01:02]}  d5 {[%clk 0:00:42]} 23. exd5 {[%clk 0:00:29]}  Bc5 {[%clk 0:00:41]} 24. Kh1 {[%clk 0:00:23]}  Rf8 {[%clk 0:00:31]} 25. Bxc5 {[%clk 0:00:15]}  Rxc5 {[%clk 0:00:29]} 26. Na2 {[%clk 0:00:09]}  Rf1+ {[%clk 0:00:27]} 0-1


[Site "https://www.chess.com"]